Cogmind - Beta 14 X2 @@@ ROGUE MODE // 2024.08.01 @ 23:24:05 Player: Olafz Result: Destroyed by Y-64 Sentinel with KE Penetrator Performance ------------- Evolutions (5) 2500 Regions Visited (8) 1600 Robots Destroyed (29) 145 Value Destroyed (982) 982 Prototype IDs (17) 340 Alien Tech Used (0) 0 Bonus (300) 300 TOTAL SCORE: 5867 Bonus ------- Registered with UFD 300 Cogmind --------- Core Integrity 0/1000 Matter 112/300 Energy 96/100 System Corruption 1% Temperature Cool (9) Movement Core (50) Location -5/Upper Caves Parts ------- > --- POWER (1) -------- (None) > --- PROPULSION (2) --- (None) > --- UTILITY (12) ----- Advanced Weight Redist. System Enhanced Optical Array Experimental Signal Interpreter Improved Terrain Scan Processor Advanced Terrain Scan Processor Core Analyzer Hacking Suite Improved Hacking Suite > --- WEAPON (2) ------- (None) > --- INVENTORY (5) ---- Enhanced Scrap Shield CPS Tube (2) Great Axe Power Sword Peak State ------------ > --- POWER ------------ Micro Fission Core > --- PROPULSION ------- Nuclear Pulse Thruster Field Propulsion Drive > --- UTILITY ---------- Enhanced Optical Array Experimental Signal Interpreter Improved Terrain Scanner Improved Terrain Scan Processor Advanced Terrain Scan Processor Improved Target Analyzer Core Analyzer Improved Transmission Jammer Hacking Suite Improved Hacking Suite Improved System Shield Advanced System Shield > --- WEAPON ----------- Chainsword Power Sword > --- INVENTORY -------- Nuclear Pulse Thruster Cooled Nuclear Pulse Thruster CPS Tube Great Axe DRS Beacon [Rating: 85] Favorites ----------- Power Subdweller Power Source Engine Subdweller Power Source Power Core Micro Fission Core Propulsion Armored Wheel Leg Aluminum Leg Wheel Armored Wheel Flight Unit Experimental Cesium-ion Thruster Utility Enhanced Optical Array Device Advanced Heat Sink Storage Large Storage Unit Processor Enhanced Optical Array Hackware Makeshift Hacking Suite Protection Scrap Shield Weapon Subdweller Laser Energy Gun Subdweller Laser Energy Cannon Subdweller Beam Cannon Ballistic Gun Subdweller Machine Gun Launcher Grenade Launcher Impact Weapon Maul Slashing Weapon Power Sword Build | -11 -10 -10 -9 -9 -6 -5 -5 -5 ------- Run | Yrd Mat Sub Rec Scr Fac Fac Upp Upp Slots Evolved 10 | . . . . . 8 2 . . Power . | . . . . . . . . . Propulsion . | . . . . . . . . . Utility 10 | . . . . . 8 2 . . Weapon . | . . . . . . . . . Parts Attached 94 | . 14 14 1 10 21 29 3 2 Power 12 | . 2 2 . 2 2 4 . . Engine 11 | . 2 2 . 2 2 3 . . Core 1 | . . . . . . 1 . . Reactor . | . . . . . . . . . Propulsion 24 | . 5 5 1 3 1 7 2 . Treads . | . . . . . . . . . Leg 5 | . 5 . . . . . . . Wheel 10 | . . 5 1 3 1 . . . Hover . | . . . . . . . . . Flight 9 | . . . . . . 7 2 . Utility 38 | . 2 2 . 3 15 14 . 2 Device 13 | . 1 1 . . 6 4 . 1 Storage 3 | . 1 . . 2 . . . . Processor 12 | . . . . 1 5 6 . . Hackware 8 | . . . . . 4 4 . . Protection 2 | . . 1 . . . . . 1 Artifact . | . . . . . . . . . Weapon 20 | . 5 5 . 2 3 4 1 . Energy Gun 8 | . 2 2 . . 3 1 . . Energy Cannon 1 | . . 1 . . . . . . Ballistic Gun 5 | . 1 2 . 2 . . . . Ballistic Cannon . | . . . . . . . . . Launcher 1 | . 1 . . . . . . . Special Weapon . | . . . . . . . . . Impact Weapon 1 | . 1 . . . . . . . Slashing Weapon 4 | . . . . . . 3 1 . Piercing Weapon . | . . . . . . . . . Special Melee Weapon . | . . . . . . . . . Unidentified Prototypes 3 | . . . . . . 1 1 1 Corrupted Parts 1 | . . . . . . 1 . . System Corruption 1 | . . . . . . 1 . . Parts Lost 32 | . 3 1 . . 11 8 6 3 Power 7 | . 1 1 . . 1 3 1 . Propulsion 7 | . . . . . 2 1 3 1 Utility 14 | . . . . . 6 4 2 2 Weapon 4 | . 2 . . . 2 . . . Highest Loss Streak 10 | . 2 1 . . 10 6 4 5 To Critical Strikes . | . . . . . . . . . Average Slot Usage (%) 92 | . 85 84 85 99 79 81 81 58 Engine 11 | . 11 12 14 13 4 2 . . Leg 2 | . 27 5 . . . . . . Wheel 21 | . . 21 28 28 8 . . . Device 2 | . 8 . . . 15 6 11 3 Storage 10 | . 14 3 . 13 4 . . . Processor 12 | . . . . 13 19 33 29 29 Hackware 3 | . . . . . 16 20 23 23 Protection 2 | . . 10 14 . . . . . Energy Gun 8 | . 6 11 14 9 3 . . . Ballistic Gun 14 | . 12 11 14 18 5 . . . Naked Turns . | . . . . . . . . . Heaviest Build 63 | 11 30 35 31 51 63 13 14 . Greatest Support 32 | 20 20 30 30 32 24 13 22 12 Greatest Overweight (x) 5 | . 2 3 3 2 5 2 . . Average Overweight (x) 1 | . . 1 1 1 1 . . . Largest Inventory Capacity 20 | . 15 15 5 20 20 5 5 5 Average Capacity 13 | . 13 7 5 16 15 5 5 5 Most Carried 19 | . 13 15 4 17 19 5 5 5 Average Carried 9 | . 8 7 3 11 11 4 4 4 Final Capacity 20 | 8 15 5 5 20 20 5 5 5 Final Carried 17 | 6 13 3 3 17 10 5 5 5 Class Distribution -------------------- 40% | Scavenger-Mutant 22% | Derelict-Mutant 14% | Subdweller-Mutant 10% | Mutant 4% | Hacker-Scout Dominant Class ---------------- Mutant | -10/Materials Subdweller-Mutant | -10/Subcaves Subdweller-Mutant | -9/Recycling Scavenger-Mutant | -9/Scraptown Derelict-Mutant | -6/Factory Hacker-Scout | -5/Factory Hacker-Scout | -5/Upper Caves Hacker-Mutant | -5/Upper Caves Resources | -11 -10 -10 -9 -9 -6 -5 -5 -5 ----------- Run | Yrd Mat Sub Rec Scr Fac Fac Upp Upp Matter Collected 1027 | 200 60 389 . 114 74 146 . 44 Remotely 74 | . . . . . 74 . . . Salvage Created 1064 | . 209 228 50 . 222 355 . . Parts 58 | . 9 18 5 . 6 20 . . Haulers Intercepted . | . . . . . . . . . Recyclers Shooed 2 | . 1 . . . . 1 . . Parts Field Recycled . | . . . . . . . . . Retrieved Matter . | . . . . . . . . . Parts Self-Destructed 19 | . . 9 . . . . 10 . Prevented 2 | . . . . . . . 1 1 Kills | -11 -10 -10 -9 -9 -6 -5 -5 -5 ------- Run | Yrd Mat Sub Rec Scr Fac Fac Upp Upp Combat Hostiles Destroyed 23 | . 5 8 1 . 4 5 . . Melee 5 | . . . . . . 5 . . Guns 11 | . 4 5 1 . 1 . . . Cannons 3 | . . 3 . . . . . . AOE 3 | . 1 . . . 2 . . . Classes Destroyed 9 | . 4 1 1 . . 3 . . Worker 2 | . . . . . . 2 . . Builder 1 | . 1 . . . . . . . Tunneler 1 | . 1 . . . . . . . Watcher 2 | . . . . . . 2 . . Swarmer 6 | . 1 3 . . . 2 . . Grunt 7 | . 4 . . . 3 . . . Sentry 3 | . . . 1 . 1 1 . . Hunter 2 | . . . . . . 2 . . Subdweller 5 | . . 5 . . . . . . Best Kill Streak 4 | . 3 4 1 . 3 2 . . Combat Bots Only 4 | . 3 4 1 . 3 2 . . Max Kills in Single Turn 2 | . 1 1 1 . 2 1 . . Gunslinging . | . . . . . . . . . Exploded 2 | . 1 . . . 2 . . . Melee 1 | . . . . . . 1 . . Uniques/NPCs Destroyed . | . . . . . . . . . Combat | -11 -10 -10 -9 -9 -6 -5 -5 -5 -------- Run | Yrd Mat Sub Rec Scr Fac Fac Upp Upp Hostile Shots Fired 422 | . 36 50 2 . 168 89 45 32 Missed 145 | . 11 10 . . 66 33 17 8 Damage Taken 4523 | . 513 673 27 . 1388 865 511 546 Core 1775 | . 130 104 . . 522 390 196 433 Absorbed by Shields . | . . . . . . . . . Core Remaining (%) 48 | 100 . . . 6 38 . . . Volleys Fired 95 | . 49 19 2 . 23 2 . . Largest 2 | . 2 2 2 . 2 1 . . Hottest 140 | . 60 140 90 . 135 65 . . Shots Fired 156 | . 69 35 4 . 46 2 . . Gun 137 | . 57 28 4 . 46 2 . . Cannon 7 | . . 7 . . . . . . Launcher 12 | . 12 . . . . . . . Special . | . . . . . . . . . Kinetic 85 | . 48 11 2 . 24 . . . Thermal 53 | . 8 24 2 . 19 . . . Explosive 12 | . 12 . . . . . . . Electromagnetic 6 | . 1 . . . 3 2 . . Robot Hit Streak 11 | . 11 5 2 . 8 5 . . Robot Miss Streak 4 | . 4 4 1 . 3 . . . Penetration Max . | . . . . . . . . . Secondary Targets 1 | . . 1 . . . . . . Max Gunslinging Chain 1 | . . 1 . . . . . . Shots Hit Robots 116 | . 35 19 2 . 33 27 . . Core Hits 49 | . 16 8 1 . 11 11 . 2 Critical Kills . | . . . . . . . . . Critical Parts Destroyed . | . . . . . . . . . Critical Strikes 6 | . . . . . . 6 . . Sever 6 | . . . . . . 6 . . Melee Attacks 48 | . 1 . . . . 47 . . Impact 1 | . 1 . . . . . . . Slashing 47 | . . . . . . 47 . . Piercing . | . . . . . . . . . Sneak Attacks 3 | . 1 . . . . 2 . . Combat Hostiles . | . . . . . . . . . Follow-up Attacks 2 | . . . . . . 2 . . Damage Inflicted 3001 | . 520 475 41 . 760 1185 . 20 Guns 1188 | . 271 337 41 . 470 69 . . Cannons 138 | . . 138 . . . . . . Explosions 471 | . 194 . . . 277 . . . Melee 1170 | . 54 . . . . 1116 . . Ramming 34 | . 1 . . . 13 . . 20 Kinetic 588 | . 250 104 21 . 213 . . . Thermal 756 | . 21 371 20 . 344 . . . Explosive 340 | . 194 . . . 146 . . . Electromagnetic 113 | . . . . . 44 69 . . Impact 54 | . 54 . . . . . . . Slashing 1116 | . . . . . . 1116 . . Piercing . | . . . . . . . . . Highest Corruption 1 | . . . . . . 1 1 1 Average Corruption 1 | . . . . . . 1 1 1 Corruption Purged . | . . . . . . . . . Corruption Blocked . | . . . . . . . . . Effects 2 | . . . . . . 2 . . Matter Fused 1 | . . . . . . 1 . . Heat Flow Errors 1 | . . . . . . 1 . . Overload Shots . | . . . . . . . . . Overflow Damage 214 | . 36 . . . . 178 . . Projectiles . | . . . . . . . . . Explosions 4 | . 4 . . . . . . . Melee 210 | . 32 . . . . 178 . . Knockbacks . | . . . . . . . . . Impact . | . . . . . . . . . Kinetic . | . . . . . . . . . Secondary . | . . . . . . . . . Self-Inflicted Damage 242 | . 150 . . . 83 . . 9 Shots 7 | . 6 . . . 1 . . . Rammed 3 | . . . . . 1 . . 2 Targets Rammed 4 | . 1 . . . 1 . . 2 Kicked 1 | . 1 . . . . . . . Crushed . | . . . . . . . . . Highest Temperature 237 | . 20 78 60 . 84 224 237 . Average Temperature 44 | . 7 30 33 . 32 117 125 . Received Heat Transfer 990 | . 141 75 9 . 585 36 81 63 Effects 1 | . . . . . . 1 . . Interference 1 | . . . . . . 1 . . Siege Activations . | . . . . . . . . . Robots Corrupted 1 | . 1 . . . . . . . Combat Hostiles . | . . . . . . . . . Parts Fried 4 | . 4 . . . . . . . Impact Corruptions 2 | . 2 . . . . . . . Robots Melted 1 | . . . . . 1 . . . Combat Hostiles 1 | . . . . . 1 . . . Parts Melted . | . . . . . . . . . Heat Transferred 1060 | . 50 460 25 . 525 . . . Parts Sabotaged . | . . . . . . . . . Parts Stolen . | . . . . . . . . . Parts Stripped . | . . . . . . . . . Power Chain Reactions 1 | . . . . . 1 . . . Alert | -11 -10 -10 -9 -9 -6 -5 -5 -5 ------- Run | Yrd Mat Sub Rec Scr Fac Fac Upp Upp Peak Influence 434 | . 138 . 99 . 126 434 . . Initial 64 | . . . 64 . . 14 . . Average 84 | . 64 . 63 . 33 171 . . Maximum Alert Level 2 | . . . . . . 2 . . Low Security (%) 90 | . 100 . 100 . 100 62 . . Level 1 8 | . . . . . . 34 . . Level 2 . | . . . . . . 3 . . Level 3 . | . . . . . . . . . Level 4 . | . . . . . . . . . Level 5 . | . . . . . . . . . High Security . | . . . . . . . . . Max Security . | . . . . . . . . . Squads Dispatched 7 | . 2 . . . 2 2 . 1 Investigation 2 | . . . . . 1 1 . . Extermination . | . . . . . . . . . Reinforcement 4 | . 2 . . . 1 1 . . Assault 1 | . . . . . . . . 1 Garrison . | . . . . . . . . . Intercept . | . . . . . . . . . Searches Triggered . | . . . . . . . . . Construction Impeded . | . . . . . . . . . Haulers Reinforced . | . . . . . . . . . Active Scanning Responses . | . . . . . . . . . Cargo Convoy Interrupts . | . . . . . . . . . Stealth | -11 -10 -10 -9 -9 -6 -5 -5 -5 --------- Run | Yrd Mat Sub Rec Scr Fac Fac Upp Upp Distress Signals 3 | . 2 . . . . 1 . . Communications Jammed . | . . . . . . . . . Distress Signals . | . . . . . . . . . Times Spotted 93 | . 11 12 1 . 13 29 13 14 Peak Tracking Total 12 | . 4 4 1 . 6 10 10 12 Tactical Retreats 12 | . 1 2 . . 2 6 1 . Traps | -11 -10 -10 -9 -9 -6 -5 -5 -5 ------- Run | Yrd Mat Sub Rec Scr Fac Fac Upp Upp Traps Triggered 7 | . 4 3 . . . . . . Indirectly . | . . . . . . . . . Trap Hack Attempts . | . . . . . . . . . Triggered . | . . . . . . . . . Disarmed . | . . . . . . . . . Reprogrammed . | . . . . . . . . . Reused . | . . . . . . . . . Traps Extracted . | . . . . . . . . . Installed . | . . . . . . . . . Triggered 3 | . . . . . . . 2 1 Machines | -11 -10 -10 -9 -9 -6 -5 -5 -5 ---------- Run | Yrd Mat Sub Rec Scr Fac Fac Upp Upp Machines Disabled 4 | . . 1 1 . 2 . . . Max in Single Turn 1 | . . 1 1 . 1 . . . Machines Repaired . | . . . . . . . . . Machines Dismantled . | . . . . . . . . . Machines Sabotaged . | . . . . . . . . . Overloaded Fab Kills . | . . . . . . . . . Hacking | -11 -10 -10 -9 -9 -6 -5 -5 -5 --------- Run | Yrd Mat Sub Rec Scr Fac Fac Upp Upp Machines Accessed 18 | . 1 . 1 9 3 4 . . Terminals 5 | . 1 . . . 1 3 . . Fabricators 1 | . . . . . . 1 . . Repair Stations 1 | . . . . . 1 . . . Recycling Units 1 | . . . . . 1 . . . Scanalyzers . | . . . . . . . . . Garrison Access . | . . . . . . . . . Total Hacks 84 | . 1 . 5 62 7 9 . . Successful 75 | . 1 . 5 62 3 4 . . Failed 9 | . . . . . 4 5 . . Catastrophic 1 | . . . . . 1 . . . Database Lockouts . | . . . . . . . . . Manual 5 | . 1 . . . . 4 . . Terminals 11 | . 1 . . . 2 8 . . Fabricators 1 | . . . . . . 1 . . Repair Stations 3 | . . . . . 3 . . . Recycling Units 2 | . . . . . 2 . . . Scanalyzers . | . . . . . . . . . Garrison Access . | . . . . . . . . . Terminal Hacks 67 | . . . 5 62 . . . . Record 63 | . . . 5 58 . . . . Robot Analysis 3 | . . . . 3 . . . . Derelict Proto ID Bank 1 | . . . . 1 . . . . Fabricator Hacks 1 | . . . . . . 1 . . Network Status 1 | . . . . . . 1 . . Repair Station Hacks 1 | . . . . . 1 . . . Scan Component 1 | . . . . . 1 . . . Recycling Unit Hacks 2 | . . . . . 2 . . . Report Inventory 1 | . . . . . 1 . . . Retrieve Components 1 | . . . . . 1 . . . Scanalyzer . | . . . . . . . . . Garrison Access Hacks . | . . . . . . . . . Unauthorized Hacks 4 | . 1 . . . . 3 . . Terminals 4 | . 1 . . . . 3 . . Botnet 4 | . 1 . . . . 3 . . Fabricators . | . . . . . . . . . Repair Stations . | . . . . . . . . . Recycling Units . | . . . . . . . . . Scanalyzers . | . . . . . . . . . Garrison Access . | . . . . . . . . . Data Cores Recovered . | . . . . . . . . . Used . | . . . . . . . . . Hacking Detections 4 | . . . . . 2 2 . . Full Trace Events 1 | . . . . . 1 . . . Feedback Events . | . . . . . . . . . Feedback Blocked . | . . . . . . . . . Robot Schematics Acquired . | . . . . . . . . . Robots Built . | . . . . . . . . . Authchips . | . . . . . . . . . Time . | . . . . . . . . . Total Robot Build Rating . | . . . . . . . . . Part Schematics Acquired . | . . . . . . . . . Parts Built . | . . . . . . . . . Authchips . | . . . . . . . . . Time . | . . . . . . . . . Total Part Build Rating . | . . . . . . . . . Parts Repaired . | . . . . . . . . . Time . | . . . . . . . . . Parts Recycled . | . . . . . . . . . Recycled Matter . | . . . . . . . . . Retrieved Matter . | . . . . . . . . . Retrieved Components . | . . . . . . . . . Parts Scanalyzed . | . . . . . . . . . Part Schematics Acquired . | . . . . . . . . . Parts Damaged . | . . . . . . . . . Bothacking | -11 -10 -10 -9 -9 -6 -5 -5 -5 ------------ Run | Yrd Mat Sub Rec Scr Fac Fac Upp Upp Used RIF Installer . | . . . . . . . . . Robots Hacked . | . . . . . . . . . Non-combat . | . . . . . . . . . Combat . | . . . . . . . . . Robot Hacks Applied . | . . . . . . . . . Relay Couplers Released . | . . . . . . . . . Fabnet Peak Effective % . | . . . . . . . . . Robots Rewired . | . . . . . . . . . Allies Hacked . | . . . . . . . . . Hacks Repelled . | . . . . . . . . . Allies | -11 -10 -10 -9 -9 -6 -5 -5 -5 -------- Run | Yrd Mat Sub Rec Scr Fac Fac Upp Upp Total Allies . | . . . . . . . . . Largest Group . | . . . . . . . . . Highest-Rated Group . | . . . . . . . . . Highest-Rated Ally . | . . . . . . . . . Total Orders . | . . . . . . . . . Ally Attacks . | . . . . . . . . . Total Damage . | . . . . . . . . . Kills . | . . . . . . . . . Allies Corrupted . | . . . . . . . . . Allies Melted . | . . . . . . . . . Intel | -11 -10 -10 -9 -9 -6 -5 -5 -5 ------- Run | Yrd Mat Sub Rec Scr Fac Fac Upp Upp Robot Analysis Total 3 | . . . . 3 . . . . Derelict Logs Recovered 5 | . . . . 5 . . . . Drone Launches . | . . . . . . . . . Drone Recoveries . | . . . . . . . . . Decoded 0b10 Intel 15 | . . . . . 7 8 . . Patrols 7 | . . . . . 2 5 . . Investigations 1 | . . . . . 1 . . . Reinforcements 1 | . . . . . . 1 . . Guards 6 | . . . . . 4 2 . . Exploration | -11 -10 -10 -9 -9 -6 -5 -5 -5 ------------- Run | Yrd Mat Sub Rec Scr Fac Fac Upp Upp Turns Passed 6687 | . 552 622 492 3945 460 519 67 30 Spaces Moved 5701 | 1 243 422 396 3046 415 1005 123 50 Core 408 | . . . . . 227 29 102 50 Treads . | . . . . . . . . . Legs 310 | 1 243 66 . . . . . . Wheels 3986 | . . 356 396 3046 188 . . . Hover . | . . . . . . . . . Flight 997 | . . . . . . 976 21 . Fastest Speed 22 | 120 120 95 107 105 50 22 39 50 Average Speed 100 | 120 166 120 115 119 83 31 48 50 Slowest Speed 260 | 120 260 190 125 120 165 150 50 50 Overloaded Moves . | . . . . . . . . . Propulsion Burnouts . | . . . . . . . . . Robots Hopped 1 | . . . . . . 1 . . Cave-ins Triggered . | . . . . . . . . . Exploration Rate (%) 41 | 2 56 33 83 95 10 40 40 14 Regions Visited 8 Branch Regions 5 Pre-discovered Areas 11 | . . 1 . 10 . . . . Known Exits Taken 3 | . . . . . 1 1 1 . Unknown Exits Taken 5 | 1 1 1 1 1 . . . . Scrap Searched 9 | . . . . 7 . . 1 1 Spaces Dug 29 | . 20 . . . . 9 . . Terrain Destroyed 87 | . 49 1 . . 28 9 . . Melee 9 | . . . . . . 9 . . Projectile 1 | . . 1 . . . . . . AOE 77 | . 49 . . . 28 . . . Terrain Rammed . | . . . . . . . . . Walls Destroyed . | . . . . . . . . . Machines Disabled . | . . . . . . . . . Actions | -11 -10 -10 -9 -9 -6 -5 -5 -5 --------- Run | Yrd Mat Sub Rec Scr Fac Fac Upp Upp Total 6422 | . 325 510 428 3358 484 1131 131 55 Wait 354 | . 3 12 29 278 4 28 . . Move 5691 | . 242 421 395 3045 414 1002 122 50 Hop 1 | . . . . . . 1 . . Pick Up 55 | . 10 11 . 15 10 8 1 . Fast Attach 45 | . 8 4 . 4 7 21 . 1 Attach 30 | . 2 5 1 1 12 6 2 1 Detach 22 | . 1 2 1 4 4 7 2 1 Swap 19 | . 4 5 . 5 2 2 1 . Drop 53 | . 4 25 . 6 7 9 2 . Fire 95 | . 49 19 2 . 23 2 . . Melee 46 | . 1 . . . . 45 . . Ram 3 | . . . . . 1 . . 2 Kick 1 | . 1 . . . . . . . Crush . | . . . . . . . . . Escape Stasis . | . . . . . . . . . Rewire . | . . . . . . . . . Trap . | . . . . . . . . . Miscellaneous 7 | . . 6 . . . . 1 . Route ------- -11/Scrapyard -10/Materials (discovered 4 exits: [*Mat] / [*Min x2] / [*Sub]) -10/Subcaves -9/Recycling (discovered 2 exits: [*Fac] / *Scr) -9/Scraptown (discovered 2 exits: *Fac x2) -6/Factory (discovered 6 exits: *Fac x4 / Low x2) -5/Factory (discovered 2 exits: *Fac / *Upp) -5/Upper Caves -5/Upper Caves (discovered 2 exits: *Fac / War) History --------- Turn | Location | Event 1 | -11/Scrapyard | Discovered new exit (range 0) 1 | -11/Scrapyard | Entered Materials 157 | -10/Materials | Discovered new exit (range 14) 315 | -10/Materials | Build established: Mutant 325 | -10/Materials | Discovered new exit (range 15) 474 | -10/Materials | Discovered new exit (range 16) 532 | -10/Materials | Core integrity fell below 50% 537 | -10/Materials | Discovered new exit (range 9) 553 | -10/Materials | Entered Subcaves 646 | -10/Subcaves | Learned location of Zion (-6) 646 | -10/Subcaves | Met a Zionite searching for "candidates" 827 | -10/Subcaves | Core integrity fell below 20% 838 | -10/Subcaves | Ambushed by Subdwellers from Twisted Machinery 978 | -10/Subcaves | Build established: Subdweller-Mutant 1094 | -10/Subcaves | Discovered new exit (range 11) 1175 | -10/Subcaves | Entered Recycling 1283 | -9/Recycling | Discovered new exit (range 5) 1636 | -9/Recycling | Scanned before Scraplab entrance 1651 | -9/Recycling | Entered Scraplab 1665 | -9/Recycling | Discovered new exit (range 3) 1667 | -9/Recycling | Entered Scraptown 1874 | -9/Scraptown | Heard Great Nut preacher, LISTEN AND RECITE! 1976 | -9/Scraptown | Build established: Scavenger-Mutant 2157 | -9/Scraptown | Scanned Subdweller tech in exchange for log data 2160 | -9/Scraptown | Learned location of Armory (-4) 2162 | -9/Scraptown | Learned Factory trap positions 2163 | -9/Scraptown | Learned location of Extension (-4) 2164 | -9/Scraptown | Learned Research stockpile data 2208 | -9/Scraptown | Visited Assassins FH 2232 | -9/Scraptown | Visited Cyclists 2276 | -9/Scraptown | Visited Cave Peace 2319 | -9/Scraptown | Visited IN-MT5's Study 2612 | -9/Scraptown | Visited Artisan Demo Area 2712 | -9/Scraptown | Visited Fellowship of the Rings 2756 | -9/Scraptown | Visited TADAMA 2839 | -9/Scraptown | Discovered new exit (range 11) 2960 | -9/Scraptown | Visited UFD Registry 2960 | -9/Scraptown | Registered with UFD as "Protowalker" 3042 | -9/Scraptown | Entered Cyclist Reading Room 3163 | -9/Scraptown | Visited Science Guys 3215 | -9/Scraptown | Visited Supply Room 3258 | -9/Scraptown | Visited Infowarlord's Domain 3267 | -9/Scraptown | Found Exp. Signal Interpreter 3331 | -9/Scraptown | Visited Cartography Club 3615 | -9/Scraptown | Visited Analyses Database 3668 | -9/Scraptown | Discovered new exit (range 3) 3722 | -9/Scraptown | Visited Scrapoid Pod Storage 3830 | -9/Scraptown | Visited Botcube Research 3928 | -9/Scraptown | Delivered Scrap Shield to a Scientist 4366 | -9/Scraptown | Visited DA-N13 Charitable Foundation 4375 | -9/Scraptown | Found DCF Scrap (28 items) 4461 | -9/Scraptown | Visited Curators Association 4501 | -9/Scraptown | Visited Derelict Rescue Squad 4678 | -9/Scraptown | Build established: Derelict-Mutant 4814 | -9/Scraptown | Learned location of Upper Caves (-4) 4814 | -9/Scraptown | Learned location of Hub_04(d) (-4) 4814 | -9/Scraptown | Learned 16 Factory zone layouts 4814 | -9/Scraptown | Learned 24 Factory zone layouts 4814 | -9/Scraptown | Learned 8 Research zone layouts 4814 | -9/Scraptown | Learned 4 Access zone layouts 4814 | -9/Scraptown | Learned 16 Lower Caves zone layouts 4814 | -9/Scraptown | Learned 20 Lower Caves zone layouts 4814 | -9/Scraptown | Learned 24 Upper Caves zone layouts 4814 | -9/Scraptown | Learned 8 Proximity Caves zone layouts 4814 | -9/Scraptown | Learned 20 Proximity Caves zone layouts 4814 | -9/Scraptown | Learned Materials emergency access door positions 4814 | -9/Scraptown | Learned location of 3 exits from Factory 4814 | -9/Scraptown | Learned location of 1 exit from Research 4814 | -9/Scraptown | Learned location of 2 exits from Proximity Caves 5612 | -9/Scraptown | Entered Factory 5612 | -6/Factory | Evolved 8 slots: Utility x8 5613 | -6/Factory | Identified exit to Factory 5614 | -6/Factory | Identified exit to Lower Caves 5616 | -6/Factory | Loaded intel: 121 trap records 5948 | -6/Factory | Core integrity fell below 50% 5986 | -6/Factory | Lost 10 parts (1p2n5u2w) 6072 | -6/Factory | Entered another Factory area 6072 | -5/Factory | Evolved 2 slots: Utility x2 6257 | -5/Factory | Lost 6 parts (2p1n3u) 6558 | -5/Factory | Discovered new exit (range 14) 6564 | -5/Factory | Identified exit to Factory 6589 | -5/Factory | Discovered new exit (range 4) 6590 | -5/Factory | Identified exit to Upper Caves 6591 | -5/Factory | Entered Upper Caves 6592 | -5/Upper Caves | Identified exit to Upper Caves 6593 | -5/Upper Caves | UFD Scientist delivered a prototype 6593 | -5/Upper Caves | Activated DRS Beacon 6597 | -5/Upper Caves | Found Prototype Protection 6613 | -5/Upper Caves | Core integrity fell below 50% 6640 | -5/Upper Caves | Lost 4 parts (3n1u) 6643 | -5/Upper Caves | Attracted the attention of an 0b10 checkpoint 6653 | -5/Upper Caves | Attracted the attention of an 0b10 outpost 6658 | -5/Upper Caves | Entered another Upper Caves area 6659 | -5/Upper Caves | Identified exit to Warlord 6660 | -5/Upper Caves | Attracted the attention of an 0b10 outpost 6664 | -5/Upper Caves | Identified Enh. Scrap Shield 6677 | -5/Upper Caves | Discovered exit to Factory (range 19) 6678 | -5/Upper Caves | Attracted the attention of an 0b10 checkpoint 6678 | -5/Upper Caves | Core integrity fell below 20% 6688 | -5/Upper Caves | Destroyed by Y-64 Sentinel with KE Penetrator Last Messages --------------- Penetrated by Slug. Y-64 Sentinel: "INTERCEPTING UNREGISTERED DERELICT." Penetrated by Slug. Searching scrap... Found Enh. Gauss Cannon. Found Adv. Weight Redist. System. Found Lrn. Proton Cannon. Found 44 Matter. Acquired 44 matter. Acquired Adv. Weight Redist. System. Adv. System Shield destroyed. Penetrated by Slug. C-30 ARC bursts open, deploying its payload. G-67 Veteran unfolds itself. B-60 Warrior unfolds itself. G-50 Soldier unfolds itself. M-28 Smith unfolds itself. Penetrated by Slug. Imp. System Shield destroyed. Penetrated by Slug. Map ----- +----------------------------------------------------+ | ???????????????????????????? ## ??????????????? | | ???????????????????????????? ??????????????? | | ????????????????????????????# ?????#????????? | | ????????????????????????????# ?????? ????????? | | ????????????????????????????? ????## ????????? | | ????????????????????????????? ????# #???????? | | ????????????????????????????? #???? ???????? | | ????????????????????????????? #????# ???????? | | ?????????????????????????????# ????? ???????? | | ?????????????????????????????# ?????? #???????? | | ?????????????????????????????# ?????? #???????? | | ?????????????????????????????# ######? #???????? | | ?????????????????????????????# ## ?? #???????? | | ?????????????????????????????# ## #?? #???????? | | ?????????????????????????????# ]## #??# #???????? | | ?????????????????????????????#] ## #### #????#### | | ???????????????????????????### ## "%" #???## | | ??????????????????????????## "### #??## ## | | ?????????????????????????## #?# #### # | | ?????????????????????????# ## ### # #? | | ?????????????????????????# ## g l /? | | ?????????????????????????# l g #? | | ?????????????????????????## #########!#? | | ??????????????????????????# ##??# #? | | ????????????# ########### Y #??# ## | | ????????????# @ #??# | | ?????????????# #?#### | | ?????????????## ########## ## #??? | | ??????????????????????????####### #?# #??? | | ????????????????????????????????# #?? #??? | | ????????????????????????????????# #??? ##??? | | ???????????????????????????????? ??? #???? | | ????????????????????????????????# ? #???? | | ????????????????????????????????# ### ???? | | #??##### ? ###????????# < #####??? ? ??? | | # #### #### ? ? ##??????????# ##????????????? | | # # #?## ###???????????###??????????????? | | #??#######??????????????????????????????? | | ##??????????????????????????????????????? | | ###????????????????????????????????????? | | ### ###??????????????????????????????????? | | ##?# ##?????????????????????????????????? | | ##??# #?????????????????????????????????? | | #??## ##?????????????????????????????????? | | ###??# #####??????????????????????????????????? | | ###???# ##??????????????????????????????????????? | | ##??############???????????????????????????????? | | ##????## ## ##??????????????????????????????? | | #????# #??????????????????????????????? | | ####### #??????????????????????????????? | +----------------------------------------------------+ Best States ------------- Heat Dissipation 56 Energy Generation 16 Energy Capacity 290 Matter Stores 300 Matter Capacity 300 Sight Range 22 Robot Scan Range 15 Terrain Scan Range 20 Terrain Scan Density 310 Jamming Range 14 Additional Mass Support 9 Corruption Containment 8 Armor Coverage 800 Evasion (%) 65 Target Analysis 6 Core Analysis 6 Offensive Hacking 33 Defensive Hacking 26 Item Schematics ----------------- None Robot Schematics ------------------ None Fabricated ------------ Nothing Alien Tech Used ----------------- None Achievements -------------- None Challenges ------------ None Game ------ Seed RecyclingElectronStreamer Manual? 0 Play Time 02:06:29 Cumulative 159.7 hours Start 2024.07.31 @ 10:37:42 End 2024.08.01 @ 23:24:05 Sessions 3 Manual Loads 0 Difficulty Rogue Special Mode None Game No. 250 Rogue 248 Adventurer 2 Explorer 0 Win Type - Total 4 Types 3/0/0/1/0/0/0/0/0 Lore% 56 Gallery% 61 Achievement% 51 Wizard Run 0 Options --------- Layout 0 ASCII 0 Keyboard 1 Movement Numpad Keybinds 1 Fullscreen 2 Font 18/SmallcapsGlow Map View 76x50 Zoom Use 0% Tactical HUD 1 Map Filters NONE Filters NONE Steam 1 RUN: c82b9b26-7121-46c7-9c32-53dc76125242